bitfinex/quotes_ETHUSD_20250529
["timestamp","ask_amount","ask_price","bid_price","bid_amount"]
[1748561958483,0.5046,2635.8,2635.6,10.0]
[1748561959000,0.39323303,2635.7,2635.6,10.0]
[1748561959283,0.39323303,2635.7,2635.4,11.79438866]
[1748561959486,3.966,2635.6,2635.4,11.79438866]
[1748561960549,1.074,2635.9,2635.4,8.0]
[1748561960886,3.966,2635.8,2635.4,11.79438612]
[1748561961689,5.04,2635.7,2635.4,11.79438612]
[1748561962199,5.04,2635.7,2635.4,8.0]
[1748561962366,5.04,2635.7,2635.4,11.79447368]
[1748561962687,3.79388369,2635.9,2635.4,11.79447368]
[1748561962688,5.04,2635.6,2635.4,11.79447368]
[1748561962891,3.966,2635.5,2635.4,11.79447368]
[1748561963197,3.966,2635.5,2635.4,15.00093568]
[1748561963485,3.79388369,2635.9,2635.4,15.00093568]
[1748561963664,0.37938837,2635.8,2635.4,11.79447368]
[1748561963862,5.04,2635.7,2635.5,3.79431718]
[1748561964901,3.79365969,2636.0,2635.5,3.79431718]
[1748561964902,1.074,2635.9,2635.8,4.251574]
[1748561965189,3.966,2635.9,2635.8,8.04548856]
[1748561965592,1.0304,2636.3,2635.9,3.79375625]
[1748561965795,0.48234744,2636.2,2635.8,3.79384461]
[1748561965949,5.025,2636.1,2635.8,3.79384461]
[1748561966894,5.025,2636.0,2635.8,3.79384461]
[1748561967657,4.82359928,2636.3,2635.8,3.79384461]
[1748561967959,1.059,2635.9,2635.8,8.15541861]
[1748561968319,5.025,2635.9,2635.8,8.15541861]
[1748561968606,1.059,2635.9,2635.8,8.15541861]
[1748561968758,1.0304,2636.3,2635.8,8.15541861]
[1748561969105,5.50735332,2636.2,2635.9,3.79374724]
[1748561969276,5.50735332,2636.2,2635.8,3.79384951]
[1748561969652,0.48235332,2636.2,2635.7,11.0679]
[1748561969858,5.025,2636.1,2635.9,10.0]
[1748561970065,1.0947,2636.5,2635.9,18.0]
[1748561970283,1.0947,2636.5,2636.1,3.79346692]
[1748561970606,5.025,2636.4,2636.1,3.79346692]
[1748561970810,1.0947,2636.5,2636.2,3.79330252]
[1748561970965,1.059,2636.3,2636.1,3.79340716]
[1748561971368,1.059,2636.3,2636.2,3.79333889]
[1748561971569,1.059,2636.3,2636.1,3.79338431]
[1748561971800,3.965,2636.2,2636.1,3.79338431]
[1748561972216,3.965,2636.2,2636.0,12.84441137]
[1748561972394,1.0947,2636.5,2636.1,3.79348279]
[1748561972597,1.059,2636.2,2636.1,3.79348279]
[1748561973313,1.0947,2636.5,2636.1,3.79348279]
[1748561973671,5.024,2636.4,2636.1,3.79348279]
[1748561975080,5.024,2636.4,2636.0,8.0]
[1748561975307,3.79325898,2636.3,2636.0,8.0]
[1748561975508,3.965,2636.3,2636.0,8.0]
[1748561976971,7.75819925,2636.3,2636.0,8.0]
[1748561977399,3.79335881,2636.2,2636.0,8.0]
[1748561977598,4.89042896,2636.1,2635.6,3.79413707]
[1748561977810,3.965,2636.0,2635.7,10.0]
[1748561978011,3.95706484,2636.0,2635.8,10.0]
[1748561978212,3.95706484,2636.0,2635.7,11.794049]
[1748561978397,3.95706484,2636.0,2635.7,8.0]
[1748561978618,3.95706484,2636.0,2635.2,4.80306975]
[1748561978776,3.79377062,2635.9,2635.4,15.98986803]
[1748561978974,3.79377062,2635.9,2635.5,10.0]
[1748561979179,7.75075309,2636.0,2635.5,13.79433839]
[1748561979480,5.024,2635.9,2635.5,13.79433839]
[1748561979680,4.89046086,2636.1,2635.6,3.79416909]
[1748561979983,8.81762728,2636.0,2635.5,3.79428039]
[1748561980206,3.79362728,2636.0,2635.6,10.0]
[1748561980405,5.024,2635.9,2635.6,10.0]
[1748561980916,3.79362728,2636.0,2635.6,10.0]
[1748561981219,5.024,2635.8,2635.6,10.0]
[1748561981928,5.024,2635.8,2635.5,3.79428039]
[1748561982395,5.01709951,2635.8,2635.5,3.79428039]
[1748561982722,5.024,2635.7,2635.5,3.79428039]
[1748561982910,3.79362728,2636.0,2635.5,3.79428039]
[1748561983109,1.059,2635.6,2635.5,7.63456839]
[1748561983310,3.79362728,2636.0,2635.5,7.63456839]
[1748561983627,5.024,2635.9,2635.5,3.79428039]
[1748561983819,5.024,2635.8,2635.6,10.0]
[1748561984197,5.024,2635.7,2635.6,10.0]
[1748561985814,3.79339969,2636.2,2635.6,10.0]
[1748561985815,3.965,2635.8,2635.7,1.0289]
[1748561986557,3.965,2635.8,2635.4,1.0289]
[1748561986706,5.0413,2635.8,2635.3,8.0]
[1748561987044,5.0413,2635.8,2635.5,8.0]
[1748561987927,5.0413,2635.8,2635.5,3.79434541]
[1748561988309,5.0413,2635.8,2635.5,11.79434541]
[1748561988519,5.0413,2635.8,2635.4,3.79442011]
[1748561988813,5.0413,2635.8,2635.4,8.0]
[1748561989248,5.0413,2635.8,2635.4,11.79444444]
[1748561989611,5.0413,2635.8,2635.5,3.7943122]
[1748561994854,5.024,2635.7,2635.5,3.7943122]
[1748561995057,1.0763,2635.8,2635.5,3.7943122]
[1748561995220,5.024,2635.7,2635.5,3.7943122]
[1748561995861,5.0192369,2635.7,2635.4,8.0]
[1748561996156,5.0192369,2635.7,2635.5,3.79428222]
[1748561997343,5.0192369,2635.7,2635.0,3.7950529]
[1748561997516,1.0482,2635.1,2634.8,10.0]
[1748561997720,3.964,2635.0,2634.7,10.0]
[1748561997927,3.964,2635.0,2634.8,10.0]
[1748561998363,1.059,2634.9,2634.7,13.79548951]
[1748561998665,1.059,2634.9,2634.7,3.79548951]
[1748561999346,1.059,2634.9,2634.8,3.79535448]
[1748562000280,1.059,2634.9,2634.8,6.69932548]
[1748562000484,1.05126297,2634.9,2634.8,6.69932548]
[1748562000889,1.05126297,2634.9,2634.8,5.85332548]
[1748562001048,1.05126297,2634.9,2634.8,3.79535448]
[1748562001247,1.05126297,2634.9,2634.8,5.85332548]
[1748562001447,1.05126297,2634.9,2634.8,3.79535448]
[1748562001649,1.05126297,2634.9,2634.8,5.85332548]
[1748562001862,1.05126297,2634.9,2634.8,10.0]
[1748562002487,1.05126297,2634.9,2634.8,5.89111848]
[1748562002782,1.05126297,2634.9,2634.8,3.79535448]
[1748562003291,1.05126297,2634.9,2634.8,6.39611848]
[1748562005207,1.05126297,2634.9,2634.8,10.16017849]
[1748562006887,1.05126297,2634.9,2634.8,6.30441649]
[1748562007691,1.05126297,2634.9,2634.8,8.56938749]
[1748562008297,1.05126297,2634.9,2634.8,6.30441649]
[1748562008451,3.964,2634.9,2634.8,6.30441649]
[1748562009300,3.964,2634.9,2634.8,8.56938749]
[1748562010495,3.964,2634.9,2634.8,2.50906201]
[1748562010711,5.0155,2634.9,2634.6,2.50906201]
[1748562011164,5.0155,2634.9,2634.7,10.0]
[1748562011564,8.81073544,2634.9,2634.7,10.0]
[1748562011901,3.79552586,2634.7,2634.0,2.50906201]
[1748562012121,3.964,2634.6,2634.2,3.79613836]
[1748562012429,3.964,2634.6,2634.2,2.50906201]
[1748562012892,3.964,2634.6,2634.2,6.30514573]
[1748562013074,3.964,2634.6,2634.3,3.796072]
[1748562013808,3.964,2634.6,2634.2,6.30520159]
[1748562015785,7.75968416,2634.6,2634.2,2.50906201]
[1748562016324,3.964,2634.6,2634.2,6.30526416]
[1748562016485,3.964,2634.6,2634.3,3.79606372]
[1748562017515,3.964,2634.6,2634.2,6.30519945]
[1748562018616,3.95792805,2634.6,2634.2,6.30519945]
[1748562018777,1.053,2634.5,2634.2,6.30519945]
[1748562019284,1.053,2634.5,2634.3,2.50906201]
[1748562022278,1.053,2634.5,2634.2,3.7961546]
[1748562022279,1.053,2634.5,2634.2,2.50906201]
[1748562022511,5.023,2634.4,2634.2,2.50906201]
[1748562022709,5.023,2634.4,2634.1,3.79631044]
[1748562022710,5.023,2634.4,2634.0,8.80520109]
[1748562022919,5.023,2634.4,2634.0,12.60170729]
[1748562023125,5.023,2634.4,2634.1,3.79636257]
[1748562025344,5.023,2634.4,2634.0,12.60169865]
[1748562025496,5.023,2634.4,2634.0,8.80520109]
[1748562025846,5.023,2634.4,2634.1,3.79634074]
[1748562027510,5.023,2634.4,2634.2,2.50906201]
[1748562027511,1.059,2634.4,2634.2,2.50906201]
[1748562027763,10.70506201,2635.3,2634.3,16.595455]
[1748562027764,1.42472898,2635.2,2634.3,16.595455]
[1748562027905,4.86894592,2635.2,2634.7,6.3044479]
[1748562028234,1.0741,2635.2,2634.9,2.50906201]
[1748562028608,1.058,2635.1,2634.9,2.50906201]
[1748562028813,5.022,2635.0,2634.9,2.50906201]
[1748562029138,4.86889431,2635.2,2634.9,2.50906201]
[1748562029307,5.022,2635.0,2634.9,2.50906201]
[1748562030711,1.0741,2635.2,2635.0,10.0]
[1748562030947,1.0741,2635.2,2634.9,2.50906201]
[1748562031151,5.021,2635.1,2634.9,2.50906201]
[1748562031351,5.021,2635.0,2634.9,2.50906201]
[1748562031561,5.021,2635.0,2634.9,5.21366201]
[1748562031951,1.0741,2635.2,2635.0,10.0]
[1748562032115,5.021,2635.0,2634.9,5.21366201]
[1748562032956,4.86889819,2635.2,2634.9,2.50906201]
[1748562033449,5.021,2635.1,2634.9,2.50906201]
[1748562033756,5.021,2635.0,2634.9,6.27566201]
[1748562033954,1.058,2635.0,2634.9,6.27566201]
[1748562034117,1.058,2635.1,2634.9,2.50906201]
[1748562034429,8.196,2635.3,2634.9,16.30416693]
[1748562034631,8.196,2635.3,2635.0,10.0]
[1748562034632,3.963,2635.2,2635.0,10.0]
[1748562035054,3.963,2635.2,2634.9,2.50906201]
[1748562035456,3.963,2635.1,2634.9,6.30427216]
[1748562036430,8.196,2635.3,2634.9,6.30427216]
[1748562036624,5.02,2635.2,2634.9,2.50906201]
[1748562037063,5.019,2635.1,2634.9,2.50906201]
[1748562037539,5.019,2635.1,2635.0,10.0]
[1748562037740,11.99066595,2635.3,2635.0,10.0]
[1748562037946,5.019,2635.2,2634.9,6.30426407]
[1748562038268,5.019,2635.1,2635.0,10.0]
[1748562038865,11.99063748,2635.3,2634.9,2.50906201]
[1748562039059,5.019,2635.1,2634.9,2.50906201]
[1748562040337,11.99063748,2635.3,2635.0,10.0]
[1748562040875,5.019,2635.2,2635.0,10.0]
[1748562041045,5.019,2635.1,2635.0,10.0]
[1748562041250,11.99063748,2635.3,2635.0,10.0]
[1748562041432,5.019,2635.2,2635.0,10.0]
[1748562041634,5.019,2635.1,2635.0,10.0]
[1748562043076,5.018,2635.1,2635.0,10.0]
[1748562043440,5.018,2635.1,2634.9,6.30425373]
[1748562044373,5.018,2635.1,2635.0,10.0]
[1748562045376,5.018,2635.1,2634.9,6.30426349]
[1748562045683,5.018,2635.1,2635.0,10.0]
[1748562046178,5.018,2635.1,2634.9,2.50906201]
[1748562046381,5.018,2635.1,2635.0,10.0]
[1748562046756,8.196,2635.3,2634.9,2.50906201]
[1748562046958,9.253,2635.3,2635.2,2.50906201]
[1748562047160,9.253,2635.3,2635.2,12.50906201]
[1748562047392,13.214,2635.3,2635.2,2.50906201]
[1748562047591,8.196,2635.3,2635.2,12.50906201]
[1748562047762,8.196,2635.3,2635.2,16.30384039]
[1748562047959,13.214,2635.3,2635.2,2.50906201]
[1748562048158,13.214,2635.3,2635.2,12.50906201]
[1748562048159,9.253,2635.3,2635.2,12.50906201]
[1748562048363,13.214,2635.3,2635.2,12.50906201]
[1748562049568,13.214,2635.3,2635.2,2.50906201]
[1748562049776,3.96,2635.3,2635.2,6.30381614]
[1748562050376,3.96,2635.3,2635.2,12.50906201]
[1748562050766,4.85691024,2635.6,2635.2,12.50906201]
[1748562051089,3.96,2635.5,2635.2,6.30380055]
[1748562051254,3.96,2635.5,2635.2,12.50906201]
[1748562051455,3.96,2635.5,2635.2,2.50906201]
[1748562052187,3.96,2635.5,2635.2,12.50906201]
[1748562052378,3.96,2635.5,2635.2,2.50906201]
[1748562053193,3.79472634,2635.3,2634.9,10.0]
[1748562053490,3.96,2635.2,2635.1,2.6774]
[1748562054689,3.96,2635.2,2635.0,6.30409827]
[1748562055482,3.96,2635.2,2635.1,3.5148]
[1748562055793,3.96,2635.2,2635.0,6.30409827]
[1748562055794,3.96,2635.2,2635.0,2.50906201]
[1748562055961,3.96,2635.2,2635.0,6.30406457]
[1748562056393,3.96,2635.2,2635.0,12.50906201]
[1748562056694,3.79456509,2635.4,2635.0,10.0]
[1748562056891,3.959,2635.3,2635.0,3.79496284]
[1748562057091,3.959,2635.3,2635.0,13.79496284]
[1748562057592,3.959,2635.2,2635.1,3.79489903]
[1748562058265,1.0409,2635.5,2635.1,3.79489903]
[1748562058467,5.014,2635.4,2635.1,3.79489903]
[1748562058670,1.055,2635.5,2635.1,3.79489903]
[1748562058874,3.959,2635.3,2635.2,6.30372035]
[1748562059074,3.959,2635.3,2635.2,16.30372035]
[1748562060160,3.959,2635.3,2635.2,12.50906201]
[1748562060379,3.959,2635.3,2635.2,10.0]
[1748562060584,3.959,2635.3,2635.1,0.2984]
[1748562060585,3.959,2635.3,2635.1,10.0]
[1748562060784,3.959,2635.3,2635.1,2.100593]
[1748562060983,1.0491,2635.2,2634.6,0.2984]
[1748562061187,3.79492828,2635.1,2634.7,28.0]
[1748562061508,3.959,2635.0,2634.9,18.0]
[1748562061885,3.959,2635.0,2634.2,2.50906201]
[1748562061886,3.79541872,2634.8,2634.2,2.50906201]
[1748562062111,3.959,2634.7,2634.4,10.0]
[1748562062428,3.959,2634.7,2634.5,8.0]
[1748562062586,3.959,2634.7,2634.4,8.0]
[1748562063321,1.055,2634.6,2634.4,8.0]
[1748562063886,3.959,2634.5,2634.4,6.52279901]
[1748562064289,3.959,2634.5,2634.4,14.52279901]
[1748562064735,1.055,2635.0,2634.6,0.2984]
[1748562064892,1.055,2635.0,2634.9,10.0]
[1748562065222,5.014,2635.0,2634.9,12.50906201]
[1748562065422,5.014,2635.0,2634.9,16.30427245]
[1748562065584,5.014,2635.0,2634.9,12.50906201]
[1748562065791,5.013,2635.0,2634.9,6.30427245]
[1748562066328,5.013,2635.0,2634.9,2.50906201]
[1748562066653,4.89298688,2635.4,2634.9,12.50906201]
[1748562066835,5.013,2635.3,2635.0,0.2984]
[1748562067136,5.013,2635.3,2635.0,4.09346188]
[1748562068549,3.79422969,2635.6,2635.1,6.3039844]
[1748562068714,5.013,2635.5,2635.1,6.3039844]
[1748562068914,3.958,2635.4,2635.1,6.3039844]
[1748562069106,4.82984958,2635.7,2635.1,6.3039844]
[1748562069308,5.013,2635.6,2635.2,3.79470104]
[1748562069655,4.82984958,2635.7,2635.1,6.30391126]
[1748562069848,3.79422225,2635.6,2635.1,2.50906201]
[1748562070054,5.013,2635.5,2635.1,2.50906201]
[1748562070206,8.80735946,2635.5,2635.1,2.50906201]
[1748562070399,8.80735946,2635.5,2635.1,12.50906201]
[1748562070600,3.79451785,2635.4,2635.1,10.0]
[1748562071204,3.79492239,2635.1,2633.7,3.79693966]
[1748562071406,3.958,2635.0,2634.5,10.0]
[1748562071674,7.75314895,2635.0,2634.5,8.0]
[1748562071844,7.75314895,2635.0,2634.5,11.79565823]
[1748562071845,3.958,2635.0,2634.5,11.79565823]
[1748562072202,3.958,2635.0,2634.5,8.76747626]
[1748562072405,3.958,2635.0,2634.8,3.79532774]
[1748562072606,3.958,2635.0,2634.7,3.79537531]
[1748562073040,3.958,2635.0,2634.8,10.0]
[1748562073210,3.79479126,2635.2,2634.8,10.0]
[1748562073413,1.055,2634.9,2634.8,10.0]
[1748562073827,3.79479126,2635.2,2634.8,10.0]
[1748562074021,5.013,2635.1,2634.8,10.0]
[1748562074225,1.659,2635.3,2634.8,16.30434447]
[1748562074226,4.90369311,2635.3,2634.8,16.30434447]
[1748562074557,1.0941,2635.7,2635.3,13.3421153]
[1748562074753,1.0941,2635.7,2635.4,12.50906201]
[1748562074754,5.013,2635.6,2635.4,12.50906201]
[1748562075667,5.013,2635.6,2635.4,10.0]
[1748562075817,5.013,2635.6,2635.3,12.81167]
[1748562076146,5.013,2635.6,2635.4,10.0]
[1748562076511,5.013,2635.6,2635.3,12.81167]
[1748562076710,5.013,2635.6,2635.4,10.0]
[1748562076960,5.013,2635.6,2635.3,12.81167]
[1748562077128,5.013,2635.6,2635.4,10.0]
[1748562077325,5.013,2635.6,2635.3,3.79462886]
[1748562077627,1.0941,2635.7,2635.3,3.79462886]
[1748562077841,1.055,2635.6,2635.3,3.79452861]
[1748562078011,1.0941,2635.9,2635.5,10.0]
[1748562078214,0.35984707,2636.2,2635.8,6.3028802]
[1748562078526,3.957,2636.1,2635.8,10.0]
[1748562078716,3.957,2636.0,2635.8,10.0]
[1748562079113,3.957,2635.9,2635.8,10.0]
[1748562080253,4.988,2635.9,2635.5,3.79425953]
[1748562080407,4.988,2635.9,2635.3,2.041597]
[1748562080408,9.17751016,2635.9,2635.3,2.041597]
[1748562080613,3.79409899,2635.7,2635.4,10.0]
[1748562080813,6.30241348,2636.2,2635.2,2.214584]
[1748562080814,1.031,2635.5,2635.2,2.214584]
[1748562081057,5.011,2635.4,2635.1,10.0]
[1748562081257,5.011,2635.4,2635.0,8.0]
[1748562081417,5.011,2635.4,2635.1,13.79492239]
[1748562081612,3.956,2635.3,2635.2,7.67076705]
[1748562081839,1.031,2635.5,2635.2,3.79472905]
[1748562082036,5.011,2635.4,2635.1,13.79485137]
[1748562082249,5.011,2635.4,2635.1,10.0]
[1748562082452,3.79467157,2635.3,2634.9,10.0]
[1748562082613,3.79467157,2635.3,2634.8,13.82980509]
[1748562082960,1.031,2635.1,2634.5,2.288876]
[1748562083256,1.031,2635.1,2634.8,3.79535448]
[1748562083257,5.011,2635.0,2634.8,3.79535448]
[1748562083414,1.031,2635.1,2634.9,10.0]
[1748562083614,5.011,2635.0,2634.9,10.0]
[1748562083948,5.011,2635.0,2634.9,3.7952052]
[1748562084148,5.011,2635.0,2634.9,13.79521044]
[1748562084347,5.011,2635.0,2634.8,3.79528089]
[1748562084549,1.055,2635.0,2634.9,10.0]
[1748562084755,1.031,2635.1,2634.9,10.0]
[1748562085060,5.011,2635.0,2634.9,10.0]
[1748562085231,5.011,2635.0,2634.7,11.79542092]
[1748562086426,5.011,2635.0,2634.7,11.79547521]
[1748562087757,1.031,2635.1,2634.9,13.7951413]
[1748562088062,5.009,2635.0,2634.9,3.7951413]
[1748562089261,5.009,2635.0,2634.9,10.0]
[1748562089750,5.009,2635.0,2634.6,6.30458503]
[1748562090061,5.009,2635.0,2634.7,13.79546317]
[1748562090474,5.009,2635.0,2634.8,10.0]
[1748562090962,5.009,2635.0,2634.8,17.70348031]
[1748562091172,5.009,2635.0,2634.8,3.79535131]
[1748562091743,5.009,2635.0,2634.9,3.79521044]
[1748562092159,5.009,2635.0,2634.9,13.79521044]
[1748562092549,5.009,2635.0,2634.9,3.79521044]
[1748562092758,5.009,2635.0,2634.9,10.0]
[1748562092949,5.009,2635.0,2634.8,3.79527407]
[1748562093276,5.009,2635.0,2634.7,8.070151]
[1748562093477,1.055,2635.3,2634.9,3.79515484]
[1748562093677,1.053,2635.0,2634.9,10.0]
[1748562093869,1.053,2635.0,2634.8,3.79530056]
[1748562094067,3.955,2634.9,2634.8,3.79530056]
[1748562094580,3.955,2634.9,2634.7,8.0]
[1748562094744,3.955,2634.9,2634.7,3.79548832]
[1748562094944,3.955,2634.9,2634.8,10.0]
[1748562095570,3.955,2634.9,2634.7,13.79548832]
[1748562095751,3.955,2634.9,2634.8,9.11548348]
[1748562096152,3.955,2634.9,2634.8,3.79535448]
[1748562096386,3.955,2634.9,2634.8,9.11548348]
[1748562097375,3.955,2634.9,2634.8,2.093481]
[1748562097997,3.955,2634.9,2634.7,3.7954271]
[1748562098173,3.955,2634.9,2634.7,13.79548954]
[1748562098488,3.955,2634.9,2634.2,3.79616788]
[1748562098489,3.79614886,2634.3,2633.8,0.0345]
[1748562098794,5.008,2634.2,2634.0,8.0]
[1748562098953,3.955,2634.1,2634.0,8.0]
[1748562099356,3.955,2634.1,2634.0,13.79650721]
[1748562099582,3.955,2634.1,2634.0,3.79650721]
[1748562099994,3.955,2634.1,2634.0,13.79650721]
[1748562100495,3.955,2634.1,2634.0,7.66332621]
[1748562102309,3.955,2634.1,2634.0,7.21345521]
[1748562102471,3.955,2634.1,2634.0,5.90532621]
[1748562102825,3.955,2634.1,2634.0,7.03132621]
[1748562103018,3.955,2634.1,2634.0,8.36847994]
[1748562104331,3.955,2634.1,2634.0,5.92446421]
[1748562104836,3.955,2634.1,2634.0,7.02577421]
[1748562105247,1.0384,2634.6,2634.1,10.0]
[1748562105461,1.0321,2634.8,2634.4,2.50906201]
[1748562105741,1.0321,2634.8,2634.2,0.0345]
[1748562105742,3.954,2634.7,2634.6,6.30462781]
[1748562105939,1.0321,2635.0,2634.6,3.51910346]
[1748562106140,5.009,2634.9,2634.8,3.79526615]
[1748562106824,5.008,2634.9,2634.7,3.79542372]
[1748562107027,1.0321,2635.0,2634.8,3.7953497]
[1748562107200,5.008,2634.9,2634.8,3.7953497]
[1748562107399,1.0056,2635.3,2634.8,3.7953497]
[1748562107638,5.008,2635.2,2634.8,3.7953497]
[1748562107818,5.008,2635.1,2634.8,3.7953497]
[1748562108347,5.008,2635.1,2634.7,3.79544178]
[1748562108506,4.80031558,2635.3,2634.6,12.50906201]
[1748562108702,3.7949291,2635.1,2634.8,10.0]
[1748562108903,5.008,2635.0,2634.6,16.30462588]
[1748562109139,5.008,2635.0,2634.7,10.0]
[1748562109343,5.008,2635.0,2634.7,3.79547853]
[1748562109871,1.0472,2634.9,2634.6,2.11]
[1748562110047,5.008,2634.8,2634.7,13.79542519]
[1748562110359,1.054,2634.9,2634.8,3.79529855]
[1748562110559,1.0472,2635.2,2634.8,13.79529855]
[1748562110909,5.008,2635.1,2634.8,3.79529855]
[1748562111103,5.008,2635.1,2634.8,10.0]
[1748562111820,5.008,2635.1,2634.8,13.79530697]
[1748562112026,5.008,2635.1,2634.8,3.79530697]
[1748562112248,5.008,2635.1,2634.7,3.79543907]
[1748562112456,4.84198089,2635.2,2634.7,3.79543907]
[1748562112627,5.007,2635.1,2634.7,3.79543907]
[1748562113237,4.84198089,2635.2,2634.7,3.79543907]
[1748562113445,5.006,2635.1,2634.7,3.79543907]
[1748562113734,5.006,2635.0,2634.7,3.79543907]
[1748562113935,5.006,2634.9,2634.7,3.79543907]
[1748562114364,3.79535448,2634.8,2634.7,10.0]
[1748562114552,3.79574895,2634.6,2634.1,3.79625599]
[1748562114747,1.008,2634.7,2634.1,3.79625599]
[1748562114748,3.953,2634.5,2634.3,3.79604865]
[1748562115977,3.953,2634.5,2634.4,3.79593076]
[1748562116887,3.953,2634.5,2634.4,11.85233276]
[1748562117071,3.953,2634.5,2634.4,3.79593076]
[1748562118047,1.051,2634.9,2634.6,3.79560624]
[1748562118263,3.953,2634.8,2634.6,3.79560624]
[1748562118761,3.953,2634.8,2634.5,13.79571356]
[1748562118989,3.953,2634.8,2634.7,10.0]
[1748562119356,3.953,2634.8,2634.6,2.47829]
[1748562119762,3.953,2634.8,2634.6,2.226395]
[1748562120143,4.84625347,2634.9,2634.6,2.226395]
[1748562120396,3.79578667,2634.5,2633.7,2.522717]
[1748562120611,1.0692,2634.6,2634.2,3.7962183]
[1748562120803,5.003,2634.5,2634.3,3.79600579]
[1748562121098,3.79512205,2635.0,2634.9,3.79521044]
[1748562121099,1.0692,2635.0,2634.9,3.79521044]
[1748562121250,3.952,2635.0,2634.9,2.50906201]
[1748562121447,1.051,2635.3,2635.2,3.79465937]
[1748562121688,5.003,2635.3,2635.2,3.79465937]
[1748562121989,5.003,2635.3,2635.1,13.79485257]
[1748562122212,5.003,2635.3,2635.1,10.0]
[1748562122490,1.051,2635.3,2635.1,13.79486603]
[1748562122662,3.79390021,2635.9,2635.2,23.79474373]
[1748562122848,1.051,2635.8,2635.5,10.0]
[1748562123048,3.952,2635.7,2635.5,3.79433306]
[1748562123596,3.79343488,2636.2,2635.6,3.79420245]
[1748562124047,6.005,2636.1,2635.6,3.79420245]
[1748562125106,9.79849657,2636.1,2635.6,3.79420245]
[1748562125407,5.84649657,2636.1,2635.6,3.79420245]
[1748562125613,3.952,2636.0,2635.6,3.79420245]
[1748562125777,3.952,2636.0,2635.7,3.79404366]
[1748562125970,3.952,2636.0,2635.6,3.79414423]
[1748562126439,3.952,2636.0,2635.6,4.55300658]
[1748562127009,5.84649591,2636.1,2635.6,4.55300658]
[1748562127230,3.951,2635.9,2635.7,3.79405197]
[1748562127599,3.951,2635.9,2635.6,4.55302964]
[1748562127924,3.951,2635.9,2635.7,3.79405812]
[1748562128142,5.84649288,2636.1,2635.7,0.83472337]
[1748562128336,3.951,2636.0,2635.7,3.79405487]
[1748562129023,3.951,2636.0,2635.6,3.79420245]
[1748562131133,3.951,2636.0,2635.7,3.79402318]
[1748562131333,3.951,2636.0,2635.3,8.0]
[1748562131334,3.95,2635.9,2635.8,3.7938702]
[1748562131543,3.95,2635.9,2635.7,3.79398791]
[1748562133024,3.95,2635.9,2635.5,10.0]
[1748562133236,3.95,2635.9,2635.5,3.7942357]
[1748562133554,3.95,2635.9,2635.6,3.79419577]
[1748562134049,3.95,2635.9,2635.8,10.0]
[1748562134219,3.95,2635.9,2635.7,13.64367]
[1748562134417,3.95,2635.9,2635.6,3.79419577]
[1748562134418,3.95,2635.9,2635.8,10.0]
[1748562134652,3.95,2635.9,2635.7,17.60469672]
[1748562134852,3.7933834,2636.2,2635.7,3.79402672]
[1748562135058,1.051,2635.9,2635.6,13.79413059]
[1748562135357,3.95,2635.8,2635.6,5.71831511]
[1748562135853,3.95,2635.8,2635.7,10.0]
[1748562136064,3.95,2635.8,2635.4,2.030174]
[1748562136255,3.79417247,2635.7,2635.4,2.140155]
[1748562136462,3.79417247,2635.7,2635.5,10.0]
[1748562136786,7.74397873,2635.8,2635.5,10.0]
[1748562136996,7.74397873,2635.8,2635.4,2.140155]
[1748562137137,7.74397873,2635.8,2635.5,10.0]
[1748562137344,3.95,2635.8,2635.5,10.0]
[1748562139145,7.74391489,2635.8,2635.5,10.0]
[1748562139349,3.95,2635.8,2635.5,10.0]
[1748562139895,4.78304679,2635.5,2634.9,8.0]
[1748562140036,3.949,2635.4,2634.8,8.0]
[1748562140358,3.949,2635.4,2635.3,13.79463438]
[1748562140557,3.949,2635.4,2635.3,16.17409782]
[1748562141560,3.949,2635.4,2635.3,10.48343582]
[1748562142277,3.949,2635.4,2635.3,10.10978782]
[1748562142475,3.949,2635.4,2635.3,7.73032438]
[1748562143676,5.83337887,2635.9,2635.4,8.53538517]
[1748562143677,1.051,2635.8,2635.4,8.53538517]
[1748562143874,3.949,2635.7,2635.5,3.79431722]
[1748562144081,3.949,2635.7,2635.2,22.841491]
[1748562144280,3.949,2635.7,2635.5,13.79422325]
[1748562144783,3.949,2635.7,2635.5,3.79422325]
[1748562145075,1.051,2635.8,2635.5,3.79422325]
[1748562145290,3.948,2635.7,2635.4,12.823159]
[1748562145494,3.948,2635.7,2634.7,4.74026862]
[1748562145495,1.0632,2635.6,2635.1,8.0]
[1748562145781,4.85750646,2635.6,2635.1,11.79483279]
[1748562146140,4.85750646,2635.6,2635.1,3.79483279]
[1748562146341,4.85750646,2635.6,2635.1,13.79483279]
[1748562146643,1.0632,2635.6,2635.3,3.7946229]
[1748562147110,1.0632,2635.6,2635.2,3.7947272]
[1748562147270,1.0632,2635.6,2635.3,3.79462428]
[1748562147696,1.0632,2635.6,2635.1,3.79483279]
[1748562147882,1.0632,2635.6,2635.3,13.79462963]
[1748562148079,1.0632,2635.6,2635.3,3.79452373]
[1748562148371,3.948,2635.5,2635.3,3.79452373]
[1748562148820,3.948,2635.5,2635.3,13.79452373]
[1748562149172,3.948,2635.5,2635.3,3.79452373]
[1748562149790,3.948,2635.5,2635.3,13.79452373]
[1748562150217,1.0632,2635.6,2635.3,3.79452373]
[1748562150378,2.1175,2635.8,2635.3,3.79452373]